fUSD/lending_fUSD_20260612
["ID","MTS","AMOUNT","RATE_DAILY","PERIOD"]
[424884805,1781232652000,-151.0,0.00034999,30]
[424884806,1781232652000,-151.0,0.00034999,30]
[424884807,1781232652000,-151.0,0.00034999,30]
[424884803,1781232652000,-1063.13985873,0.00034998,30]
[424884809,1781232652000,-151.0,0.00034999,30]
[424884802,1781232652000,-516.950014,0.00034978,120]
[424884812,1781232652000,-151.0,0.00034999,30]
[424884835,1781232652000,-160.0,0.00034999,30]
[424884822,1781232652000,-151.0,0.00034999,30]
[424884811,1781232652000,-151.0,0.00034999,30]
[424884813,1781232652000,-151.0,0.00034999,30]
[424884814,1781232652000,-151.0,0.00034999,30]
[424884815,1781232652000,-151.0,0.00034999,30]
[424884817,1781232652000,-151.0,0.00034999,30]
[424884818,1781232652000,-151.0,0.00034999,30]
[424884819,1781232652000,-151.0,0.00034999,30]
[424884816,1781232652000,-151.0,0.00034999,30]
[424884820,1781232652000,-151.0,0.00034999,30]
[424884821,1781232652000,-151.0,0.00034999,30]
[424884824,1781232652000,-160.34467154,0.00034999,30]
[424884826,1781232652000,-160.0,0.00034999,30]
[424884825,1781232652000,-6888.0,0.00034999,30]
[424884830,1781232652000,-7142.856,0.00034999,30]
[424884823,1781232652000,-151.0,0.00034999,30]
[424884859,1781232652000,-152.38392526,0.00034999,30]
[424884856,1781232652000,-151.0,0.00034999,30]
[424884865,1781232652000,-151.0,0.00034999,30]
[424884898,1781232652000,-557.5788265,0.00034999,30]
[424884900,1781232652000,-1000.0,0.00034999,30]
[424884897,1781232652000,-151.0,0.00034999,30]
[424884895,1781232652000,-168.3888056,0.00034999,30]
[424884899,1781232652000,-200.0,0.00034999,30]
[424884905,1781232652000,-152.38392526,0.00034999,30]
[424884904,1781232652000,-157.51838458,0.00034999,30]
[424884906,1781232652000,-8260.13072238,0.00034999,30]
[424884913,1781232652000,-10000.0,0.00034999,30]
[424884910,1781232652000,-518.5,0.00034999,30]
[424884914,1781232652000,-500.0,0.00034999,30]
[424884912,1781232652000,-151.0,0.00034999,30]
[424884908,1781232652000,-288.65811614,0.00034999,30]
[424884907,1781232652000,-160.0,0.00034999,30]
[424884892,1781232652000,-10000.0,0.00034999,30]
[424884915,1781232652000,-160.34467154,0.00034999,30]
[424884916,1781232652000,-200.0,0.00034999,30]
[424884909,1781232652000,-156.587,0.00034999,30]
[424884918,1781232652000,-151.0,0.00034999,30]
[424884928,1781232652000,-157.51838458,0.00034999,30]
[424884917,1781232652000,-174.61919141,0.00034999,30]
[424884919,1781232652000,-181.08010149,0.00034999,30]
[424884920,1781232652000,-151.0,0.00034999,30]
[424884925,1781232652000,-578.20924308,0.00034999,30]
[424884926,1781232652000,-162.380719,0.00034999,30]
[424884921,1781232652000,-8565.75555911,0.00034999,30]
[424884923,1781232652000,-152.38392526,0.00034999,30]
[424884927,1781232652000,-1000.0,0.00034999,30]
[424884924,1781232652000,-154.19676567,0.00034999,30]
[424884861,1781232652000,-157.51838458,0.00034999,30]
[424884911,1781232652000,-156.587,0.00034999,30]
[424884893,1781232652000,-160.34467154,0.00034999,30]
[424884922,1781232652000,-200.0,0.00034999,30]
[424884896,1781232652000,-174.61919141,0.00034999,30]
[424884875,1781232652000,-162.380719,0.00034999,30]
[424884876,1781232652000,-1000.0,0.00034999,30]
[424884867,1781232652000,-168.3888056,0.00034999,30]
[424884870,1781232652000,-151.0,0.00034999,30]
[424884871,1781232652000,-10000.0,0.00034999,30]
[424884868,1781232652000,-500.0,0.00034999,30]
[424884866,1781232652000,-160.0,0.00034999,30]
[424884864,1781232652000,-162.380719,0.00034999,30]
[424884894,1781232652000,-200.0,0.00034999,30]
[424884869,1781232652000,-160.34467154,0.00034999,30]
[424884874,1781232652000,-537.6845,0.00034999,30]
[424884872,1781232652000,-151.0,0.00034999,30]
[424884877,1781232652000,-154.19676567,0.00034999,30]
[424884878,1781232652000,-2071.43887091,0.00034999,30]
[424884880,1781232652000,-157.51838458,0.00034999,30]
[424884873,1781232652000,-7965.41053267,0.00034999,30]
[424884888,1781232652000,-500.0,0.00034999,30]
[424884886,1781232652000,-160.0,0.00034999,30]
[424884903,1781232652000,-9056.08472512,0.00034999,30]
[424884901,1781232652000,-154.19676567,0.00034999,30]
[424884902,1781232652000,-151.0,0.00034999,30]
[424884890,1781232652000,-500.0,0.00034999,30]
[424884885,1781232652000,-151.0,0.00034999,30]
[424884891,1781232652000,-151.0,0.00034999,30]
[424884889,1781232652000,-151.0,0.00034999,30]
[424884879,1781232652000,-168.3888056,0.00034999,30]
[424884881,1781232652000,-10000.0,0.00034999,30]
[424884882,1781232652000,-200.0,0.00034999,30]
[424884887,1781232652000,-174.61919141,0.00034999,30]
[424884884,1781232652000,-151.0,0.00034999,30]
[424884883,1781232652000,-152.38392526,0.00034999,30]
[424884979,1781232653000,-644.79446245,0.00034999,30]
[424884972,1781232653000,-194.72792766,0.00034999,30]
[424884970,1781232653000,-336.41476893,0.00034999,30]
[424884978,1781232653000,-181.08010149,0.00034999,30]
[424884971,1781232653000,-160.34467154,0.00034999,30]
[424884969,1781232653000,-500.0,0.00034999,30]
[424884958,1781232653000,-211.30250255,0.00034999,30]
[424884966,1781232653000,-151.0,0.00034999,30]
[424884967,1781232653000,-161.97410216,0.00034999,30]
[424884964,1781232653000,-157.51838458,0.00034999,30]
[424884963,1781232653000,-174.61919141,0.00034999,30]
[424884968,1781232653000,-151.0,0.00034999,30]
[424884965,1781232653000,-1000.0,0.00034999,30]
[424884973,1781232653000,-205.24605968,0.00034999,30]
[424884987,1781232653000,-181.08010149,0.00034999,30]
[424884974,1781232653000,-174.61919141,0.00034999,30]
[424884980,1781232653000,-157.51838458,0.00034999,30]
[424884975,1781232653000,-557.5788265,0.00034999,30]
[424884977,1781232653000,-152.38392526,0.00034999,30]
[424884976,1781232653000,-151.0,0.00034999,30]
[424884994,1781232653000,-1000.0,0.00034999,30]
[424884984,1781232653000,-192.39108741,0.00034999,30]
[424884983,1781232653000,-152.79184237,0.00034999,30]
[424884982,1781232653000,-1000.0,0.00034999,30]
[424884985,1781232653000,-160.34467154,0.00034999,30]
[424884993,1781232653000,-151.0,0.00034999,30]
[424884986,1781232653000,-203.86536092,0.00034999,30]
[424884989,1781232653000,-152.38392531,0.00034999,30]
[424884961,1781232653000,-8998.92328323,0.00034999,30]
[424884981,1781232653000,-151.0,0.00034999,30]
[424884962,1781232653000,-621.78829552,0.00034999,30]
[424884945,1781232653000,-157.51838458,0.00034999,30]
[424884957,1781232653000,-151.0,0.00034999,30]
[424884988,1781232653000,-151.0,0.00034999,30]
[424884930,1781232653000,-162.380719,0.00034999,30]
[424884929,1781232653000,-160.0,0.00034999,30]
[424884932,1781232653000,-10000.0,0.00034999,30]
[424884931,1781232653000,-151.0,0.00034999,30]
[424884940,1781232653000,-200.0,0.00034999,30]
[424884941,1781232653000,-8882.6885148,0.00034999,30]
[424884942,1781232653000,-154.19676567,0.00034999,30]
[424884943,1781232653000,-168.3888056,0.00034999,30]
[424884933,1781232653000,-500.0,0.00034999,30]
[424884937,1781232653000,-187.78006524,0.00034999,30]
[424884936,1781232653000,-181.08010149,0.00034999,30]
[424884939,1781232653000,-152.38392526,0.00034999,30]
[424884938,1781232653000,-151.0,0.00034999,30]
[424884935,1781232653000,-160.34467154,0.00034999,30]
[424884934,1781232653000,-200.0,0.00034999,30]
[424884944,1781232653000,-599.60298507,0.00034999,30]
[424884947,1781232653000,-160.0,0.00034999,30]
[424884956,1781232653000,-537.6845,0.00034999,30]
[424884952,1781232653000,-168.3888056,0.00034999,30]
[424884950,1781232653000,-2796.39671561,0.00034999,30]
[424884951,1781232653000,-200.0,0.00034999,30]
[424884949,1781232653000,-151.0,0.00034999,30]
[424884953,1781232653000,-160.34467154,0.00034999,30]
[424884955,1781232653000,-194.72792766,0.00034999,30]
[424884948,1781232653000,-500.0,0.00034999,30]
[424884946,1781232653000,-1000.0,0.00034999,30]
[424884954,1781232653000,-187.78006524,0.00034999,30]
[424884960,1781232653000,-154.1967657,0.00034999,30]
[424884959,1781232653000,-152.38392526,0.00034999,30]
[424884992,1781232653000,-157.51838458,0.00034999,30]
[424885055,1781232653000,-250.0,0.00034999,30]
[424884991,1781232653000,-673.4918084,0.00034999,30]
[424885026,1781232653000,-500.0,0.00034999,30]
[424885024,1781232653000,-152.0,0.00034999,30]
[424885034,1781232653000,-151.0,0.00034999,30]
[424885032,1781232653000,-151.0,0.00034999,30]
[424885022,1781232653000,-157.51838469,0.00034999,30]
[424885031,1781232653000,-152.0,0.00034999,30]
[424885036,1781232653000,-250.0,0.00034999,30]
[424885046,1781232653000,-500.0,0.00034999,30]
[424885048,1781232653000,-250.0,0.00034999,30]
[424885040,1781232653000,-500.0,0.00034999,30]
[424885042,1781232653000,-152.0,0.00034999,30]
[424885039,1781232653000,-151.0,0.00034999,30]
[424885043,1781232653000,-151.0,0.00034999,30]
[424885038,1781232653000,-151.0,0.00034999,30]
[424885045,1781232653000,-500.0,0.00034999,30]
[424885047,1781232653000,-500.0,0.00034999,30]
[424885037,1781232653000,-152.0,0.00034999,30]
[424885044,1781232653000,-151.0,0.00034999,30]
[424885035,1781232653000,-500.0,0.00034999,30]
[424885041,1781232653000,-250.0,0.00034999,30]
[424885050,1781232653000,-151.0,0.00034999,30]
[424885051,1781232653000,-151.0,0.00034999,30]
[424885052,1781232653000,-500.0,0.00034999,30]
[424885049,1781232653000,-152.0,0.00034999,30]
[424885056,1781232653000,-152.0,0.00034999,30]
[424885058,1781232653000,-151.0,0.00034999,30]
[424885053,1781232653000,-500.0,0.00034999,30]
[424885057,1781232653000,-151.0,0.00034999,30]
[424884990,1781232653000,-187.78006524,0.00034999,30]
[424885027,1781232653000,-151.0,0.00034999,30]
[424885029,1781232653000,-152.0,0.00034999,30]
[424885054,1781232653000,-500.0,0.00034999,30]
[424885028,1781232653000,-500.0,0.00034999,30]
[424885030,1781232653000,-250.0,0.00034999,30]
[424884996,1781232653000,-187.78006524,0.00034999,30]
[424884998,1781232653000,-194.72792766,0.00034999,30]
[424885007,1781232653000,-160.34467154,0.00034999,30]
[424884997,1781232653000,-151.0,0.00034999,30]
[424885006,1781232653000,-157.51838458,0.00034999,30]
[424884995,1781232653000,-160.34467154,0.00034999,30]
[424885003,1781232653000,-194.72792766,0.00034999,30]
[424884999,1781232653000,-157.51838458,0.00034999,30]
[424885004,1781232653000,-151.0,0.00034999,30]
[424885001,1781232653000,-160.34467154,0.00034999,30]
[424885005,1781232653000,-203.7619035,0.00034999,30]
[424885000,1781232653000,-151.91712755,0.00034999,30]
[424885002,1781232653000,-1000.0,0.00034999,30]
[424885009,1781232653000,-153.30850377,0.00034999,30]
[424885008,1781232653000,-1011.32241164,0.00034999,30]
[424885012,1781232653000,-157.51838458,0.00034999,30]
[424885011,1781232653000,-160.34467157,0.00034999,30]
[424885023,1781232653000,-151.0,0.00034999,30]
[424885033,1781232653000,-500.0,0.00034999,30]
[424885019,1781232653000,-152.0,0.00034999,30]
[424885016,1781232653000,-157.51838458,0.00034999,30]
[424885020,1781232653000,-157.51838458,0.00034999,30]
[424885025,1781232653000,-151.0,0.00034999,30]
[424885021,1781232653000,-152.0,0.00034999,30]
[424885017,1781232653000,-157.51838458,0.00034999,30]
[424885015,1781232653000,-157.51838458,0.00034999,30]
[424885010,1781232653000,-157.51838458,0.00034999,30]
[424885013,1781232653000,-201.93286098,0.00034999,30]
[424885018,1781232653000,-157.51838458,0.00034999,30]
[424885014,1781232653000,-157.51838458,0.00034999,30]
[424885101,1781232654000,-338.209091,0.00035,7]
[424885110,1781232654000,-205.21010824,0.00035,120]
[424885100,1781232654000,-338.209091,0.00035,7]
[424885096,1781232654000,-1498.88253296,0.00035,20]
[424885095,1781232654000,-15912.0,0.00035,2]
[424885097,1781232654000,-152.582154,0.00035,7]
[424885093,1781232654000,-628.831389,0.00035,17]
[424885088,1781232654000,-213.78,0.00035,2]
[424885098,1781232654000,-4000.0,0.00035,30]
[424885099,1781232654000,-376.8712,0.00035,61]
[424885091,1781232654000,-1000.0,0.00035,120]
[424885092,1781232654000,-505.0,0.00035,16]
[424885089,1781232654000,-567.49,0.00035,30]
[424885103,1781232654000,-338.209091,0.00035,7]
[424885107,1781232654000,-262.928167,0.00035,7]
[424885104,1781232654000,-338.209091,0.00035,7]
[424885102,1781232654000,-500.0,0.00035,30]
[424885109,1781232654000,-888.42728489,0.00035,2]
[424885106,1781232654000,-262.928167,0.00035,7]
[424885108,1781232654000,-262.928167,0.00035,7]
[424885113,1781232654000,-257.25612,0.00035,7]
[424885111,1781232654000,-151.0,0.00035,7]
[424885114,1781232654000,-151.0,0.00035,7]
[424885112,1781232654000,-151.0,0.00035,7]
[424885122,1781232654000,-150.05401293,0.00035,30]
[424885094,1781232654000,-200.0,0.00035,10]
[424885116,1781232654000,-1173238.54579864,0.00035,120]
[424885105,1781232654000,-262.928167,0.00035,7]
[424885090,1781232654000,-161.2155328,0.00035,120]
[424885064,1781232654000,-151.0,0.00034999,30]
[424885083,1781232654000,-4909.54307396,0.00035,7]
[424885121,1781232654000,-302632.39856,0.00035,120]
[424885061,1781232654000,-500.0,0.00034999,30]
[424885060,1781232654000,-500.0,0.00034999,30]
[424885059,1781232654000,-500.0,0.00034999,30]
[424885062,1781232654000,-250.0,0.00034999,30]
[424885065,1781232654000,-151.0,0.00034999,30]
[424885068,1781232654000,-500.0,0.00034999,30]
[424885066,1781232654000,-500.0,0.00034999,30]
[424885070,1781232654000,-250.0,0.00034999,30]
[424885072,1781232654000,-151.0,0.00034999,30]
[424885071,1781232654000,-151.0,0.00034999,30]
[424885067,1781232654000,-500.0,0.00034999,30]
[424885069,1781232654000,-152.0,0.00034999,30]
[424885073,1781232654000,-500.0,0.00034999,30]
[424885063,1781232654000,-152.0,0.00034999,30]
[424885075,1781232654000,-500.0,0.00034999,30]
[424885077,1781232654000,-150.0,0.00035,7]
[424885085,1781232654000,-500.0,0.00035,60]
[424885074,1781232654000,-500.0,0.00034999,30]
[424885076,1781232654000,-152.0,0.00034999,30]
[424885078,1781232654000,-150.05975511,0.00035,7]
[424885086,1781232654000,-813.84590609,0.00035,120]
[424885082,1781232654000,-151.0,0.00035,2]
[424885080,1781232654000,-26911.10708108,0.00035,7]
[424885081,1781232654000,-800.0,0.00035,7]
[424885079,1781232654000,-26911.10708108,0.00035,7]
[424885084,1781232654000,-4909.54307396,0.00035,7]
[424885087,1781232654000,-200.0,0.00035,2]
[424885118,1781232654000,-20000.0,0.00035,10]
[424885130,1781232654000,-1000.0,0.00035049,30]
[424885115,1781232654000,-151.0,0.00035,7]
[424885159,1781232654000,-1050.42853373,0.00035202,2]
[424885149,1781232654000,-589.0,0.00035162,30]
[424885157,1781232654000,-376.87121,0.000352,61]
[424885155,1781232654000,-450.28,0.00035174,2]
[424885156,1781232654000,-10007.35187955,0.000352,30]
[424885158,1781232654000,-1000.0,0.00035202,2]
[424885154,1781232654000,-227.0,0.00035163,30]
[424885160,1781232654000,-150.0,0.00035217,120]
[424885162,1781232654000,-6511.7318,0.00035266,2]
[424885163,1781232654000,-463.313108,0.00035279,120]
[424885161,1781232654000,-1000.0,0.00035238,30]
[424885165,1781232654000,-150.0,0.00035285,2]
[424885117,1781232654000,-10000.0,0.00035,120]
[424885164,1781232654000,-150.0,0.00035285,2]
[424885168,1781232654000,-458.91009403,0.00035306,120]
[424885169,1781232654000,-158.22364077,0.00035309,2]
[424885171,1781232654000,-1000.0,0.00035332,30]
[424885166,1781232654000,-150.97091164,0.00035285,2]
[424885167,1781232654000,-2500.0,0.000353,14]
[424885173,1781232654000,-150.0,0.00035346,120]
[424885172,1781232654000,-250.0,0.00035342,38]
[424885175,1781232654000,-350.0,0.00035368,7]
[424885176,1781232654000,-465.0752082,0.00035369,2]
[424885174,1781232654000,-150.0,0.00035348,120]
[424885177,1781232654000,-231.7,0.00035376,120]
[424885178,1781232654000,-734.17842592,0.00035384,2]
[424885179,1781232654000,-2655.72553156,0.00035386,2]
[424885153,1781232654000,-189.0,0.00035163,30]
[424885150,1781232654000,-200.0,0.00035162,30]
[424885170,1781232654000,-215.11,0.00035322,30]
[424885151,1781232654000,-174.0,0.00035162,30]
[424885119,1781232654000,-4309.25291339,0.00035,3]
[424885148,1781232654000,-244.0,0.00035162,30]
[424885120,1781232654000,-2500.0,0.00035,10]
[424885134,1781232654000,-532.0,0.00035068,120]
[424885124,1781232654000,-2011.43270807,0.00035,15]
[424885123,1781232654000,-1000.0,0.00035,120]
[424885128,1781232654000,-152.0,0.00035042,7]
[424885129,1781232654000,-152.0,0.00035042,7]
[424885125,1781232654000,-150.0,0.00035002,120]
[424885126,1781232654000,-6511.7318,0.00035019,2]
[424885127,1781232654000,-423.04,0.0003503,62]
[424885132,1781232654000,-256.24,0.0003506,120]
[424885131,1781232654000,-150.0,0.00035056,120]
[424885133,1781232654000,-228.53,0.00035065,7]
[424885135,1781232654000,-150.0,0.00035085,120]
[424885137,1781232654000,-300.0,0.000351,10]
[424885146,1781232654000,-167.0,0.00035162,30]
[424885144,1781232654000,-157.0,0.00035162,30]
[424885145,1781232654000,-206.0,0.00035162,30]
[424885142,1781232654000,-6511.7318,0.00035143,2]
[424885136,1781232654000,-7659.07,0.000351,120]
[424885143,1781232654000,-1000.0,0.00035143,30]
[424885141,1781232654000,-5000.0,0.00035132,30]
[424885138,1781232654000,-25185.8515619,0.000351,120]
[424885139,1781232654000,-155.43734426,0.00035115,2]
[424885147,1781232654000,-225.0,0.00035162,30]
[424885140,1781232654000,-320.0,0.00035121,37]
[424885152,1781232654000,-173.0,0.00035162,30]
[424885198,1781232655000,-96000.0,0.00035455,60]
[424885200,1781232655000,-338.209091,0.00035455,7]
[424885196,1781232655000,-100000.0,0.00035455,120]
[424885208,1781232655000,-151.0,0.00035455,7]
[424885207,1781232655000,-151.0,0.00035455,7]
[424885206,1781232655000,-262.92817508,0.00035455,7]
[424885203,1781232655000,-262.928167,0.00035455,7]
[424885199,1781232655000,-338.209091,0.00035455,7]
[424885201,1781232655000,-338.209091,0.00035455,7]
[424885210,1781232655000,-257.0,0.00035455,120]
[424885209,1781232655000,-151.0,0.00035455,7]
[424885197,1781232655000,-89799.66313349,0.00035455,90]
[424885202,1781232655000,-338.209097,0.00035455,7]
[424885205,1781232655000,-262.928167,0.00035455,7]
[424885180,1781232655000,-780.5768505,0.00035386,2]
[424885193,1781232655000,-150.0,0.00035446,120]
[424885214,1781232655000,-700.0,0.0003547,2]
[424885183,1781232655000,-5000.0,0.000354,120]
[424885181,1781232655000,-6511.7318,0.00035389,2]
[424885182,1781232655000,-1647.2068,0.00035389,2]
[424885184,1781232655000,-150.0,0.000354,14]
[424885186,1781232655000,-153.72,0.000354,30]
[424885194,1781232655000,-150.0,0.00035453,2]
[424885185,1781232655000,-300.0,0.000354,30]
[424885191,1781232655000,-2017.58782826,0.00035423,15]
[424885187,1781232655000,-286.0,0.000354,120]
[424885189,1781232655000,-320.0,0.00035407,38]
[424885190,1781232655000,-150.0,0.00035416,120]
[424885195,1781232655000,-9113.25712935,0.00035455,31]
[424885192,1781232655000,-1000.0,0.00035426,30]
[424885188,1781232655000,-376.8712,0.000354,61]
[424885215,1781232655000,-700.0,0.0003547,2]
[424885204,1781232655000,-262.928167,0.00035455,7]
[424885216,1781232655000,-700.0,0.0003547,2]
[424885228,1781232655000,-292.55802965,0.00035479,120]
[424885236,1781232655000,-800.0,0.00035481,13]
[424885235,1781232655000,-800.0,0.00035481,13]
[424885237,1781232655000,-824.8976691,0.00035481,13]
[424885240,1781232655000,-800.0,0.00035481,13]
[424885238,1781232655000,-800.0,0.00035481,13]
[424885229,1781232655000,-150.0,0.00035481,30]
[424885239,1781232655000,-800.0,0.00035481,13]
[424885241,1781232655000,-339.85470247,0.00035481,13]
[424885242,1781232655000,-3111.0,0.00035484,31]
[424885243,1781232655000,-3170.72546221,0.00035484,30]
[424885245,1781232655000,-279412.52583527,0.00035485,7]
[424885246,1781232655000,-2245138.48092911,0.00035485,30]
[424885213,1781232655000,-500.0,0.0003547,2]
[424885244,1781232655000,-3000.0,0.00035485,30]
[424885230,1781232655000,-800.0,0.00035481,13]
[424885234,1781232655000,-800.0,0.00035481,13]
[424885225,1781232655000,-286.54120284,0.00035479,120]
[424885211,1781232655000,-423.04,0.0003546,88]
[424885220,1781232655000,-150.0,0.00035478,7]
[424885217,1781232655000,-700.0,0.0003547,2]
[424885212,1781232655000,-500.0,0.0003547,2]
[424885224,1781232655000,-215.3825728,0.00035479,120]
[424885218,1781232655000,-700.0,0.0003547,2]
[424885222,1781232655000,-249.66496614,0.00035479,120]
[424885219,1781232655000,-418.51,0.00035476,7]
[424885221,1781232655000,-284.03421377,0.00035479,120]
[424885232,1781232655000,-800.0,0.00035481,13]
[424885233,1781232655000,-800.0,0.00035481,13]
[424885223,1781232655000,-151.25234196,0.00035479,120]
[424885227,1781232655000,-295.39287249,0.00035479,120]
[424885226,1781232655000,-215.04143497,0.00035479,120]
[424885231,1781232655000,-800.0,0.00035481,13]
[424885252,1781232656000,-13.90689475,0.00034999,30]
[424885248,1781232656000,-952.99622919,0.00021898,2]
[424885247,1781232656000,-1900.0,0.00035485,30]
[424885249,1781232656000,-151.0,0.0001244,2]
[424885251,1781232656000,-250.0,0.00034999,30]
[424885250,1781232656000,-1204.14620907,0.00021898,2]
[424885253,1781232656000,-137.09310525,0.00034999,30]
[424885256,1781232656000,-151.0,0.00035455,7]
[424885254,1781232656000,-500.0,0.00034999,30]
[424885255,1781232656000,-151.0,0.00034999,30]
[424885264,1781232656000,-529.29512671,0.00035485,30]
[424885262,1781232656000,-493.87721992,0.00034999,30]
[424885261,1781232656000,-6.12278008,0.00034999,30]
[424885260,1781232656000,-500.0,0.00034999,30]
[424885259,1781232656000,-1592.87721992,0.0002135,2]
[424885258,1781232656000,-151.0,0.0002135,2]
[424885257,1781232656000,-18.83554744,0.00035485,30]
[424885263,1781232656000,-4803.49717247,0.00035485,30]
[424885292,1781232657000,-152.0,0.00034999,30]
[424885297,1781232657000,-500.0,0.00034999,30]
[424885288,1781232657000,-151.0,0.00032877,7]
[424885290,1781232657000,-5800.0,0.00034356,2]
[424885295,1781232657000,-500.0,0.00034999,30]
[424885294,1781232657000,-151.0,0.00034999,30]
[424885293,1781232657000,-250.0,0.00034999,30]
[424885303,1781232657000,-500.0,0.00034999,30]
[424885304,1781232657000,-500.0,0.00034999,30]
[424885305,1781232657000,-152.0,0.00034999,30]
[424885308,1781232657000,-151.0,0.00034999,30]
[424885289,1781232657000,-151.0,0.00032877,7]
[424885306,1781232657000,-151.0,0.00034999,30]
[424885296,1781232657000,-151.0,0.00034999,30]
[424885298,1781232657000,-500.0,0.00034999,30]
[424885300,1781232657000,-151.0,0.00034999,30]
[424885299,1781232657000,-152.0,0.00034999,30]
[424885301,1781232657000,-500.0,0.00034999,30]
[424885302,1781232657000,-151.0,0.00034999,30]
[424885307,1781232657000,-500.0,0.00034999,30]
[424885286,1781232657000,-2781.82699784,0.00025734,2]
[424885283,1781232657000,-2494.55939288,0.0002409,2]
[424885285,1781232657000,-2682.57183977,0.00025186,2]
[424885310,1781232657000,-500.0,0.00034999,30]
[424885266,1781232657000,-415.0901429,0.0002135,2]
[424885268,1781232657000,-151.0,0.0002135,2]
[424885267,1781232657000,-1236.72353416,0.0002135,2]
[424885265,1781232657000,-151.0,0.0002135,2]
[424885270,1781232657000,-151.0,0.0002135,2]
[424885269,1781232657000,-1712.93078311,0.0002135,2]
[424885274,1781232657000,-151.0,0.0002135,2]
[424885282,1781232657000,-2405.55389863,0.00023542,2]
[424885287,1781232657000,-2884.75459676,0.00026282,2]
[424885271,1781232657000,-1776.30922209,0.0002135,2]
[424885276,1781232657000,-151.0,0.0002135,2]
[424885273,1781232657000,-1842.0326633,0.0002135,2]
[424885280,1781232657000,-2236.95670847,0.00022446,2]
[424885278,1781232657000,-151.0,0.0002135,2]
[424885281,1781232657000,-2319.72410669,0.00022994,2]
[424885279,1781232657000,-2054.15682147,0.0002135,2]
[424885275,1781232657000,-1910.18787185,0.0002135,2]
[424885277,1781232657000,-1980.8648231,0.0002135,2]
[424885291,1781232657000,-300.0,0.00034492,2]
[424885272,1781232657000,-151.0,0.0002135,2]
[424885321,1781232657000,-151.0,0.00034999,30]
[424885284,1781232657000,-2586.85809042,0.00024638,2]
[424885322,1781232657000,-500.0,0.00034999,30]
[424885336,1781232657000,-3903537.88650207,0.00035485,30]
[424885338,1781232657000,-315.58784794,0.0002683,2]
[424885341,1781232657000,-151.0,0.0002135,2]
[424885340,1781232657000,-151.0,0.0002135,2]
[424885339,1781232657000,-151.0,0.0001244,2]
[424885342,1781232657000,-151.0,0.0002135,2]
[424885344,1781232657000,-126.0,0.0002135,2]
[424885343,1781232657000,-151.0,0.0002135,2]
[424885345,1781232657000,-188.6884819,0.00013499,2]
[424885348,1781232657000,-1680.24928217,0.00027397,10]
[424885346,1781232657000,-25.0,0.0002135,2]
[424885347,1781232657000,-2675.90266886,0.0002683,2]
[424885351,1781232657000,-680.65096222,0.00027397,10]
[424885350,1781232657000,-638.0736389,0.00027397,10]
[424885352,1781232657000,-300.0,0.00034492,2]
[424885355,1781232657000,-300.0,0.00034492,2]
[424885353,1781232657000,-268.28693063,0.00034492,2]
[424885356,1781232657000,-191.07089849,0.00034492,2]
[424885354,1781232657000,-31.71306937,0.00034492,2]
[424885337,1781232657000,-151.0,0.0002135,2]
[424885329,1781232657000,-151.0,0.00034999,30]
[424885349,1781232657000,-765.63611671,0.00027397,10]
[424885331,1781232657000,-500.0,0.00034999,30]
[424885330,1781232657000,-500.0,0.00034999,30]
[424885318,1781232657000,-151.0,0.00034999,30]